Cogmind - Beta 10.2 @@@ ROGUE MODE // 2021.06.03 @ 07:35:16 Player: Endlessblaze Result: Destroyed by D-53 Grenadier with Mini Grenade Launcher Performance ------------- Evolutions (0) 0 Regions Visited (2) 400 Robots Destroyed (18) 90 Value Destroyed (275) 275 Prototype IDs (1) 20 Alien Tech Used (0) 0 Bonus (0) 0 TOTAL SCORE: 785 Bonus ------- None Cogmind --------- Core Integrity 0/250 Matter 273/300 Energy 74/100 System Corruption 0% Temperature Cool (0) Movement Core (50) Location -10/Mines Parts ------- > --- POWER (1) -------- (None) > --- PROPULSION (2) --- (None) > --- UTILITY (2) ------ (None) > --- WEAPON (2) ------- (None) > --- INVENTORY (4) ---- Aluminum Leg Small Laser Light Assault Rifle Datajack Peak State ------------ > --- POWER ------------ Light Ion Engine > --- PROPULSION ------- Aluminum Leg Aluminum Leg > --- UTILITY ---------- Large Storage Unit Experimental Sensor Array > --- WEAPON ----------- EM Pulse Gun Small Laser > --- INVENTORY -------- Aluminum Leg Aluminum Leg Flight Unit Flight Unit Light Assault Rifle Light Assault Rifle Grenade Launcher Datajack [Rating: 12] Favorites ----------- Power Light Ion Engine Engine Light Ion Engine Propulsion Aluminum Leg Leg Aluminum Leg Wheel Compact Wheel Flight Unit Flight Unit Utility Small Storage Unit Device Sensor Array Storage Small Storage Unit Weapon Assault Rifle Energy Gun EM Pulse Gun Ballistic Gun Assault Rifle Launcher Grenade Launcher Build | -11 -10 -10 ------- Run | Scr Mat Min Slots Evolved . | . . . Power . | . . . Propulsion . | . . . Utility . | . . . Weapon . | . . . Parts Attached 19 | 9 4 6 Power 1 | 1 . . Engine 1 | 1 . . Core . | . . . Reactor . | . . . Propulsion 8 | 4 2 2 Treads . | . . . Leg 4 | 2 2 . Wheel 2 | 2 . . Hover . | . . . Flight 2 | . . 2 Utility 5 | 2 2 1 Device 3 | 1 1 1 Storage 2 | 1 1 . Processor . | . . . Hackware . | . . . Protection . | . . . Artifact . | . . . Weapon 5 | 2 . 3 Energy Gun 2 | . . 2 Energy Cannon . | . . . Ballistic Gun 2 | 2 . . Ballistic Cannon . | . . . Launcher 1 | . . 1 Special Weapon . | . . . Impact Weapon . | . . . Slashing Weapon . | . . . Piercing Weapon . | . . . Special Melee Weapon . | . . . Unidentified Prototypes 1 | . . 1 Parts Lost 9 | . 1 8 Power 1 | . . 1 Propulsion 2 | . . 2 Utility 2 | . 1 1 Weapon 4 | . . 4 Highest Loss Streak 6 | . 1 6 Average Slot Usage (%) 94 | . 92 97 Engine 13 | . 14 13 Leg 27 | . 28 27 Device 9 | . 6 13 Storage 14 | . 14 14 Energy Gun 10 | . . 25 Ballistic Gun 17 | . 28 . Naked Turns 3 | . . 3 Heaviest Build 25 | 12 24 25 Greatest Support 20 | 20 20 20 Greatest Overweight (x) 1 | . 1 1 Average Overweight (x) . | . . . Largest Inventory Capacity 10 | 6 10 10 Average Capacity 7 | 5 6 9 Most Carried 9 | 3 6 9 Average Carried 5 | . 3 7 Final Capacity 10 | 6 10 4 Final Carried 6 | 1 6 4 Class Distribution -------------------- 100% | Mutant Dominant Class ---------------- Mutant | -10/Materials Mutant | -10/Mines Resources | -11 -10 -10 ----------- Run | Scr Mat Min Matter Collected 551 | 297 188 66 Remotely 251 | 169 82 . Salvage Created 499 | 53 317 129 Parts 35 | 4 20 11 Haulers Intercepted . | . . . Recyclers Shooed 2 | . . 2 Parts Field Recycled . | . . . Retrieved Matter . | . . . Parts Self-Destructed . | . . . Prevented . | . . . Kills | -11 -10 -10 ------- Run | Scr Mat Min Combat Hostiles Destroyed 14 | . 7 7 Guns 12 | . 7 5 AOE 2 | . . 2 Classes Destroyed 6 | 1 4 1 Worker 2 | . 2 . Recycler 2 | 1 . 1 Watcher 2 | . 2 . Swarmer 8 | . 3 5 Grunt 4 | . 4 . Assembled 2 | . . 2 Best Kill Streak 6 | 1 6 5 Combat Bots Only 5 | . 3 5 Max Kills in Single Turn 3 | 1 2 3 Gunslinging 1 | . . 1 Exploded 2 | . . 2 Melee . | . . . Uniques/NPCs Destroyed . | . . . Combat | -11 -10 -10 -------- Run | Scr Mat Min Damage Taken 1036 | . 292 744 Core 260 | . 34 226 Absorbed by Shields . | . . . Core Remaining (%) 100 | 100 . . Volleys Fired 46 | 4 31 11 Largest 2 | 2 2 2 Hottest 80 | 40 40 80 Shots Fired 92 | 8 62 22 Gun 90 | 8 62 20 Cannon . | . . . Launcher 2 | . . 2 Special . | . . . Kinetic 82 | 8 62 12 Thermal 3 | . . 3 Explosive 2 | . . 2 Electromagnetic 5 | . . 5 Robot Hit Streak 7 | 1 7 5 Robot Miss Streak 5 | 2 5 3 Penetration Max . | . . . Secondary Targets 3 | . . 3 Max Gunslinging Chain 1 | . . 1 Shots Hit Robots 54 | 4 37 13 Core Hits 31 | 2 17 12 Critical Hits . | . . . Critical Kills . | . . . Critical Parts Destroyed . | . . . Melee Attacks . | . . . Impact . | . . . Slashing . | . . . Piercing . | . . . Sneak Attacks . | . . . Combat Hostiles . | . . . Follow-up Attacks . | . . . Damage Inflicted 909 | 50 500 359 Guns 703 | 50 500 153 Cannons . | . . . Explosions 201 | . . 201 Melee . | . . . Ramming 5 | . . 5 Kinetic 649 | 50 500 99 Thermal 21 | . . 21 Explosive 201 | . . 201 Electromagnetic 33 | . . 33 Impact . | . . . Slashing . | . . . Piercing . | . . . Highest Corruption . | . . . Average Corruption . | . . . Corruption Purged . | . . . Overload Shots . | . . . Overflow Damage . | . . . Projectiles . | . . . Explosions . | . . . Melee . | . . . Knockbacks . | . . . Impact . | . . . Kinetic . | . . . Secondary . | . . . Self-Inflicted Damage . | . . . Shots . | . . . Rammed . | . . . Targets Rammed 1 | . . 1 Kicked 1 | . . 1 Crushed . | . . . Highest Temperature 54 | . 2 54 Average Temperature 16 | . 2 24 Received Heat Transfer 164 | . 144 20 Siege Activations . | . . . Robots Corrupted . | . . . Combat Hostiles . | . . . Parts Fried . | . . . Impact Corruptions . | . . . Robots Melted . | . . . Combat Hostiles . | . . . Parts Melted . | . . . Heat Transferred 50 | . . 50 Parts Sabotaged . | . . . Parts Stolen . | . . . Parts Stripped . | . . . Power Chain Reactions . | . . . Missiles Intercepted . | . . . Alert | -11 -10 -10 ------- Run | Scr Mat Min Peak Influence 261 | 5 261 149 Initial 29 | . 3 29 Average 136 | 2 156 138 Maximum Alert Level 1 | . 1 . Low Security (%) 74 | 100 53 100 Level 1 25 | . 46 . Level 2 . | . . . Level 3 . | . . . Level 4 . | . . . Level 5 . | . . . High Security . | . . . Max Security . | . . . Squads Dispatched 2 | . 2 . Investigation 1 | . 1 . Extermination . | . . . Reinforcement 1 | . 1 . Assault . | . . . Garrison . | . . . Intercept . | . . . Construction Impeded . | . . . Haulers Reinforced . | . . . Stealth | -11 -10 -10 --------- Run | Scr Mat Min Distress Signals 1 | . 1 . Communications Jammed . | . . . Distress Signals . | . . . Times Spotted 29 | . 16 13 Peak Tracking Total 7 | . 5 7 Tactical Retreats 1 | . 1 . Traps | -11 -10 -10 ------- Run | Scr Mat Min Traps Triggered 1 | . 1 . Indirectly . | . . . Trap Hack Attempts . | . . . Triggered . | . . . Disarmed . | . . . Reprogrammed . | . . . Reused . | . . . Traps Extracted . | . . . Installed . | . . . Triggered . | . . . Machines | -11 -10 -10 ---------- Run | Scr Mat Min Machines Disabled . | . . . Max in Single Turn . | . . . Machines Sabotaged . | . . . Garrisons Compromised . | . . . Overloaded Fab Kills . | . . . Fab Network Shutdowns . | . . . Hacking | -11 -10 -10 --------- Run | Scr Mat Min Machines Accessed 5 | . 5 . Terminals 3 | . 3 . Fabricators . | . . . Repair Stations . | . . . Recycling Units 2 | . 2 . Scanalyzers . | . . . Garrison Access . | . . . Total Hacks 17 | . 17 . Successful 11 | . 11 . Failed 6 | . 6 . Catastrophic . | . . . Database Lockouts . | . . . Manual 4 | . 4 . Terminals 9 | . 9 . Fabricators . | . . . Repair Stations . | . . . Recycling Units 8 | . 8 . Scanalyzers . | . . . Garrison Access . | . . . Terminal Hacks 3 | . 3 . Record 2 | . 2 . Reinforcement Status 1 | . 1 . Fabricator Hacks . | . . . Repair Station Hacks . | . . . Recycling Unit Hacks 5 | . 5 . Retrieve Matter 3 | . 3 . Retrieve Components 2 | . 2 . Scanalyzer . | . . . Garrison Access Hacks . | . . . Unauthorized Hacks 3 | . 3 . Terminals 3 | . 3 . Track 1 | . 1 . Botnet 2 | . 2 . Fabricators . | . . . Repair Stations . | . . . Recycling Units . | . . . Scanalyzers . | . . . Garrison Access . | . . . Data Cores Recovered . | . . . Used . | . . . Hacking Detections 4 | . 4 . Full Trace Events . | . . . Feedback Events . | . . . Feedback Blocked . | . . . Robot Schematics Acquired . | . . . Robots Built . | . . . Matter . | . . . Time . | . . . Total Robot Build Rating . | . . . Part Schematics Acquired . | . . . Parts Built . | . . . Matter . | . . . Time . | . . . Total Part Build Rating . | . . . Parts Repaired . | . . . Time . | . . . Parts Recycled . | . . . Recycled Matter . | . . . Retrieved Matter 39 | . 39 . Retrieved Components 10 | . 10 . Parts Scanalyzed . | . . . Part Schematics Acquired . | . . . Parts Damaged . | . . . Bothacking | -11 -10 -10 ------------ Run | Scr Mat Min Used RIF Installer . | . . . Robots Hacked . | . . . Non-combat . | . . . Combat . | . . . Robot Hacks Applied . | . . . Relay Couplers Released . | . . . Robots Rewired . | . . . Allies Hacked . | . . . Hacks Repelled . | . . . Allies | -11 -10 -10 -------- Run | Scr Mat Min Total Allies . | . . . Largest Group . | . . . Highest-Rated Group . | . . . Highest-Rated Ally . | . . . Total Orders . | . . . Ally Attacks . | . . . Total Damage . | . . . Kills . | . . . Allies Corrupted . | . . . Allies Melted . | . . . Intel | -11 -10 -10 ------- Run | Scr Mat Min Robot Analysis Total . | . . . Derelict Logs Recovered . | . . . Drone Launches . | . . . Drone Recoveries . | . . . Exploration | -11 -10 -10 ------------- Run | Scr Mat Min Turns Passed 1003 | 86 545 372 Spaces Moved 621 | 59 343 219 Core 26 | 19 . 7 Treads . | . . . Legs 594 | 40 343 211 Wheels . | . . . Hover . | . . . Flight 1 | . . 1 Fastest Speed 50 | 50 120 50 Average Speed 127 | 97 121 146 Slowest Speed 150 | 120 150 150 Overloaded Moves . | . . . Propulsion Burnouts . | . . . Robots Hopped . | . . . Cave-ins Triggered . | . . . Exploration Rate (%) 27 | 3 53 26 Regions Visited 2 Branch Regions 1 Pre-discovered Areas . | . . . Known Exits Taken . | . . . Unknown Exits Taken 2 | 1 1 . Scrap Searched . | . . . Spaces Dug 6 | . . 6 Terrain Destroyed 14 | . . 14 Melee . | . . . Projectile . | . . . AOE 14 | . . 14 Terrain Rammed . | . . . Walls Destroyed . | . . . Machines Disabled . | . . . Actions | -11 -10 -10 --------- Run | Scr Mat Min Total 733 | 77 409 247 Wait 33 | 1 28 4 Move 619 | 58 342 219 Hop . | . . . Pick Up 11 | 3 3 5 Fast Attach 9 | 7 1 1 Attach 6 | 2 . 4 Detach . | . . . Swap 4 | . 3 1 Drop 4 | 2 1 1 Fire 46 | 4 31 11 Melee . | . . . Ram . | . . . Kick 1 | . . 1 Crush . | . . . Escape Stasis . | . . . Rewire . | . . . Trap . | . . . Miscellaneous . | . . . Route ------- -11/Scrapyard -10/Materials (discovered 3 exits: [*Mat x2] / [*Min]) -10/Mines (discovered 1 exit: [*Mat]) History --------- Turn | Location | Event 14 | -11/Scrapyard | Discovered new exit (range 16) 87 | -11/Scrapyard | Entered Materials 199 | -10/Materials | Discovered new exit (range 14) 302 | -10/Materials | Build established: Mutant 403 | -10/Materials | Discovered new exit (range 5) 488 | -10/Materials | Discovered new exit (range 15) 632 | -10/Materials | Entered Mines 761 | -10/Mines | Discovered new exit (range 10) 878 | -10/Mines | Found a damaged Exp. Sensor Array with a note attached 882 | -10/Mines | Found Prototype Device 882 | -10/Mines | Identified Exp. Sensor Array 941 | -10/Mines | Assembled infested the area 946 | -10/Mines | Assisted by a Guerilla fighting off Assembled 1000 | -10/Mines | Core integrity fell below 50% 1001 | -10/Mines | Released all parts (3) 1003 | -10/Mines | Core integrity fell below 20% 1004 | -10/Mines | Destroyed by D-53 Grenadier with Mini Grenade Launcher Last Messages --------------- D-53 Grenadier unfolds itself. Kicked K-01 Serf out of the way. R-06 Scavenger destroyed. as-01283 destroyed. as-44628 destroyed. Destroyed Asb. Hover Unit. as-98775 destroyed. as-98967 destroyed. Lgt. Ion Engine destroyed. EM Pulse Gun destroyed. Aluminum Leg destroyed. R-06 Scavenger destroyed. Exp. Sensor Array destroyed. The unstable cave ceiling collapses. Grenade Launcher destroyed. The unstable cave ceiling collapses. Released Lrg. Storage Unit. Released Flight Unit. The unstable cave ceiling collapses. as-07355 destroyed. Map ----- +----------------------------------------------------+ | ???????????# #??## ###????????? | | ???????????# #### ##???????? | | ???????????# ? #???????? | | ???????????# #???# ##??????? | | ???????????# ##### #??????? | | ???????????# ######## | | ???????????# ###### % | | ???????????# #????## ######## | | ???????????# #?????## ##??????? | | ????######## #?????## #???????? | | ??### ## #???### #???????? | | ??# #??## ##??????? | | ??# !* #??# #??????? | | ?## =%*#####??# #??????? | | ## #?????# ## ##??????? | | # dd ##????###?####???????? | | # #???????????????????? | | # != ##??????????????????? | | # =! #??????????????????? | | # [ #??????????????????? | | ## #??????????????????? | | ?## # #??????????????????? | | ??## #??????????????????? | | ???## ##??????????????????? | | ????### % ##???????????????????? | | ??????#@ #????????????????????? | | ??????# #?????????????????????? | | ??????# !#?????????????????????? | | ??????# %#?????????????????????? | | ??????# =#?????????????????????? | | ?????? #?????????????????????? | | ?????? #?????????????????????? | | ?????? =?????????????????????? | | ?????? *?????????????????????? | | ?????? ?????????????????????? | | ?????? ?????????????????????? | | ??????### ????????????????????? | | ?????????##????????????????????? | | ???????????????????????????????? | | ???????????????????????????????? | | ???????????????????????????????? | | ???????????????????????????????? | | ???????????????????????????????? | | ???????????????????????????????? | | ???????????????????????????????? | | ???????????????????????????????? | | ???????????????????????????????? | | ???????????????????????????????? | | ???????????????????????????????? | | ???????????????????????????????? | +----------------------------------------------------+ Best States ------------- Heat Dissipation 25 Energy Generation 10 Energy Capacity 125 Matter Stores 300 Matter Capacity 300 Sight Range 16 Robot Scan Range 30 Terrain Scan Density 10 Evasion (%) 50 Item Schematics ----------------- None Robot Schematics ------------------ None Fabricated ------------ Nothing Alien Tech Used ----------------- None Achievements -------------- Use The Force Challenges ------------ None Game ------ Seed SupersonicPrecisionRigger Manual? 0 Play Time 00:13:11 Cumulative 6.0 hours Start 2021.06.03 @ 07:24:19 End 2021.06.03 @ 07:35:16 Sessions 1 Manual Loads 0 Difficulty Rogue Special Mode None Game No. 9 Rogue 9 Adventurer 0 Explorer 0 Win Type - Total 0 Types 0/0/0/0/0/0/0/0/0 Lore% 7 Gallery% 16 Achievement% 14 Wizard Run 0 Options --------- ASCII 0 Keyboard 0 Movement Arrows Keybinds 0 Fullscreen 1 Font 12/Smallcaps Map View 83x54 Tactical HUD 0 Map Filters NONE Filters NONE Steam 1 RUN: d947f481-222b-4106-aed6-e15ea523cdd1